[Event "51st Rilton Cup 2023-24"]
[Site "Stockholm"]
[Date "2024.01.02"]
[Round "6.9"]
[White "Oratovsky, Michael"]
[Black "Costa, Leonardo"]
[Result "1-0"]
[ECO "B15"]
[WhiteElo "2421"]
[BlackElo "2472"]
[Annotator "TA"]
[PlyCount "63"]
[EventDate "2023.12.27"]
[EventType "swiss"]
[EventCountry "SWE"]
[SourceTitle "playchess.com"]
[Source "ChessBase"]
[SourceQuality "1"]
[TimeControl "40/5400+30:1800+30"]

{[%evp 15,63,15,33,15,20,33,31,9,47,32,151,148,136,108,202,215,204,221,211,212,175,219,183,179,279,261,364,359,337,330,527,520,458,395,434,444,437,436,559,547,563,558,1189,1149,972,963,29985,29979,29977,29978]} 1. e4 {[%emt 0:11:06]} c6 {[%emt 0:00:05]} 2. d4 {[%emt 0:01:40]} d5 {[%emt 0:00:04]} 3. Nd2 {[%emt 0:01:10]} dxe4 {[%emt 0:00:05]} 4. Nxe4 {[%emt 0:00:06]} Nf6 {[%emt 0:00:03]} 5. Nxf6+ {[%emt 0:00:13]} exf6 {[%emt 0:00:04]} 6. c3 {[%emt 0:00:17]} Bd6 {[%emt 0:00:05]} 7. Bd3 {[%emt 0:00:12]} O-O {[%emt 0:00:05]} 8. Ne2 {[%emt 0:00:09][%cal Bg1e2,Be2g3,Bg3h5,Bh5f6][%mdl 32]} Re8 {[%emt 0:00:04]} 9. O-O {[%emt 0:05:10] B15: Caro-Kann: 3 Nc3: 3...g6 and 3...dxe4 4 Nxe4 Nf6 5 Nxf6+ exf6.} (9. Qc2 $5 {[%cal Rd3h7]}) 9... Nd7 {[%emt 0:00:04]} 10. Ng3 {[%emt 0:04:44]} Nf8 {[%emt 0:12:21]} 11. a4 {[%emt 0:05:38] White is slightly better.} a5 {[%emt 0:04:27]} 12. f4 {[%emt 0:02:46][%cal Bf2f4,Bf4f5][%mdl 32] [#]} Ne6 $146 {[%emt 0:15:44]} (12... Qc7 $1 $14) ({Predecessor:} 12... c5 13. d5 Qc7 14. c4 Ng6 15. Qh5 Bd7 16. Bd2 Re7 17. Nf5 Bxf5 18. Qxf5 Rae8 {0-1 Kramnik,V (2753)-Remizov,Y (2421) Titled Tuesday intern op 02nd May Early blitz 2023 (11)}) 13. f5 $1 $16 {[%emt 0:18:30] White is more active.} (13. Qh5 g6 14. Qf3 f5 $15) 13... Nc7 {[%emt 0:00:04]} 14. Nh5 {[%emt 0:06:05][%cal Oc1h6] Black must now prevent Bh6!} Kh8 {[%emt 0:12:38]} (14... Nd5 $16) 15. Qg4 $1 $18 {[%emt 0:28:19][%csl Gh5][%cal Rg4g7]} g6 {[%emt 0:23:51] [#]} 16. Nxf6 {[%emt 0:04:07][%mdl 512]} Qxf6 {[%emt 0:00:14]} 17. Bg5 {[%emt 0:00:47]} Qg7 {[%emt 0:00:03]} 18. Qh4 $1 {[%emt 0:00:19]} Nd5 {[%emt 0:09:17] [#] Inhibits Bf6. Hoping for ...gxf5.} 19. c4 $1 {[%emt 0:00:38]} Be7 {[%emt 0:00:03]} (19... Bf4 {keeps fighting.} 20. f6 (20. Bxf4 Qxd4+ 21. Kh1 Nxf4 $14) 20... Qf8) 20. Rae1 {[%emt 0:05:57]} (20. cxd5 $2 {too greedy.} Bxg5 21. Qxg5 Qxd4+ 22. Rf2 Qxd3 $19) ({Don't take} 20. f6 $6 Nxf6 21. Bh6 (21. Bxf6 Bxf6 22. Rxf6 Re3 $11) (21. Rxf6 Kg8 $11) 21... Qg8 22. Rxf6 c5 $18) 20... Be6 {[%emt 0:00:15] And now ...gxf5 would win.} 21. Bxe7 {[%emt 0:01:36]} (21. fxe6 Bxg5 22. Qxg5 Qxd4+ 23. Kh1 f6 $14) 21... Nxe7 {[%emt 0:01:37] [#]} 22. f6 {[%emt 0:00:14]} ({Not} 22. fxe6 f5 $16) 22... Qg8 {[%emt 0:03:35]} (22... Qf8 {is a better defense.}) 23. fxe7 {[%emt 0:00:22] Black is weak on the dark squares} Qg7 {[%emt 0:00:17]} 24. Qf4 {[%emt 0:01:44]} Rac8 {[%emt 0:04:20]} 25. Kh1 {[%emt 0:00:25]} Rxe7 {[%emt 0:04:29] [#]} 26. d5 $1 {[%emt 0:00:07][%mdl 512]} cxd5 {[%emt 0:00:05]} (26... Rd7 27. dxe6) 27. cxd5 {[%emt 0:00:07][%cal Bc4d5,Bd5e6,Be6f7][%mdl 32]} Rd7 {[%emt 0:00:46]} 28. dxe6 {[%emt 0:00:14]} Rxd3 {[%emt 0:00:04]} 29. exf7 {[%emt 0:00:55] White threatens Re8+ and mate.} Rdd8 {[%emt 0:00:25] Prevents Re8+} 30. Re7 {[%emt 0:00:57] Rfe1 would kill now.} b6 {[%emt 0:00:07]} 31. Qe3 {[%emt 0:00:34]} Rf8 {[%emt 0:01:03]} 32. Re8 {[%emt 0:00:26] Weighted Error Value: White=0.06 (flawless) /Black=0.79} 1-0

[Event "51st Rilton Cup 2023-24"]
[Site "Stockholm"]
[Date "2024.01.02"]
[Round "6.10"]
[White "Socko, Monika"]
[Black "Rozentalis, Eduardas"]
[Result "1/2-1/2"]
[ECO "E18"]
[WhiteElo "2396"]
[BlackElo "2454"]
[Annotator "RC"]
[PlyCount "61"]
[EventDate "2023.12.27"]
[EventType "swiss"]
[EventCountry "SWE"]
[SourceTitle "playchess.com"]
[Source "ChessBase"]
[SourceQuality "1"]
[TimeControl "40/5400+30:1800+30"]

1. d4 {[%emt 0:00:09]} Nf6 {[%emt 0:00:13]} 2. Nf3 {[%emt 0:00:26]} e6 {[%emt 0:01:09]} 3. g3 {[%emt 0:00:44]} b6 {[%emt 0:01:15]} 4. Bg2 {[%emt 0:00:37]} Bb7 {[%emt 0:00:17]} 5. O-O {[%emt 0:01:14]} Be7 {[%emt 0:01:04]} 6. c4 {[%emt 0:00:43]} O-O {[%emt 0:00:23]} 7. Re1 {[%emt 0:03:59]} Na6 {[%emt 0:02:39]} 8. Nc3 {[%emt 0:00:26]} Ne4 {[%emt 0:05:49]} 9. Bf4 {[%emt 0:00:19]} Nxc3 {[%emt 0:03:34]} 10. bxc3 {[%emt 0:00:03]} Be4 {[%emt 0:00:15]} 11. Bf1 {[%emt 0:00:03]} d6 {[%emt 0:01:50]} 12. Nd2 {[%emt 0:02:38]} Bb7 {[%emt 0:03:05]} 13. e4 {[%emt 0:00:37]} Nb8 {[%emt 0:01:32]} 14. Qc2 {[%emt 0:03:37]} Nd7 {[%emt 0:02:06]} 15. Rad1 {[%emt 0:00:50]} e5 {[%emt 0:05:42]} 16. Be3 {[%emt 0:00:34]} Re8 {[%emt 0:01:34]} 17. Bg2 {[%emt 0:02:28]} Bf8 {[%emt 0:07:02]} 18. Nf1 {[%emt 0:06:45]} Qe7 {[%emt 0:02:49]} 19. Bc1 {[%emt 0:03:30]} g6 {[%emt 0:04:31]} 20. h4 {[%emt 0:04:57]} Nf6 {[%emt 0:05:46]} 21. Bg5 {[%emt 0:05:07]} h6 {[%emt 0:01:04]} 22. Bxf6 {[%emt 0:00:47]} Qxf6 {[%emt 0:00:06]} 23. Ne3 {[%emt 0:00:11]} h5 {[%emt 0:06:17]} 24. Nd5 {[%emt 0:03:04]} Bxd5 {[%emt 0:00:41]} 25. cxd5 {[%emt 0:01:16]} Rad8 {[%emt 0:00:34]} 26. a4 {[%emt 0:01:37]} a5 {[%emt 0:00:26]} 27. Qd3 {[%emt 0:01:21]} Bg7 {[%emt 0:02:41]} 28. Qf3 {[%emt 0:02:26]} Qxf3 {[%emt 0:01:28]} 29. Bxf3 {[%emt 0:00:03]} Re7 {[%emt 0:00:17]} 30. Re2 {[%emt 0:01:08]} Kf8 {[%emt 0:00:53]} 31. Kf1 {[%emt 0:00:22]} 1/2-1/2

[Event "51st Rilton Cup 2023-24"]
[Site "Stockholm"]
[Date "2024.01.02"]
[Round "6.11"]
[White "Chasin, Nico"]
[Black "Ostlund, Joar"]
[Result "1-0"]
[ECO "D36"]
[WhiteElo "2444"]
[BlackElo "2326"]
[Annotator "RC"]
[PlyCount "45"]
[EventDate "2023.12.27"]
[EventType "swiss"]
[EventCountry "SWE"]
[SourceTitle "playchess.com"]
[Source "ChessBase"]
[SourceQuality "1"]
[TimeControl "40/5400+30:1800+30"]

1. d4 {[%emt 0:08:29]} Nf6 {[%emt 0:00:26]} 2. c4 {[%emt 0:00:09]} e6 {[%emt 0:00:10]} 3. Nc3 {[%emt 0:00:14]} d5 {[%emt 0:00:20]} 4. cxd5 {[%emt 0:00:07]} exd5 {[%emt 0:00:06]} 5. Bg5 {[%emt 0:00:15]} c6 {[%emt 0:00:09]} 6. e3 {[%emt 0:00:05]} h6 {[%emt 0:00:13]} 7. Bh4 {[%emt 0:00:05]} Be7 {[%emt 0:00:13]} 8. Bd3 {[%emt 0:00:06]} O-O {[%emt 0:00:11]} 9. Qc2 {[%emt 0:00:03]} Re8 {[%emt 0:00:21]} 10. Nge2 {[%emt 0:00:05]} Nbd7 {[%emt 0:00:32]} 11. O-O {[%emt 0:00:38]} a5 {[%emt 0:00:11]} 12. a3 {[%emt 0:01:10]} b5 {[%emt 0:03:31]} 13. h3 {[%emt 0:04:22]} Nb6 {[%emt 0:08:54]} 14. a4 {[%emt 0:01:19]} b4 {[%emt 0:11:26]} 15. Nb1 {[%emt 0:00:03]} Bd7 {[%emt 0:09:10]} 16. Nd2 {[%emt 0:02:26]} g5 {[%emt 0:20:29]} 17. Bg3 {[%emt 0:00:12]} c5 {[%emt 0:00:11]} 18. dxc5 {[%emt 0:00:54]} Rc8 {[%emt 0:00:08]} 19. b3 {[%emt 0:02:23]} Rxc5 {[%emt 0:06:12]} 20. Qb2 {[%emt 0:00:55]} Ne4 {[%emt 0:05:11]} 21. Be5 {[%emt 0:00:01]} Nxd2 {[%emt 0:08:58]} 22. Qxd2 {[%emt 0:00:03]} Nxa4 {[%emt 0:13:19]} 23. bxa4 {[%emt 0:00:07]} 1-0

[Event "51st Rilton Cup 2023-24"]
[Site "Stockholm"]
[Date "2024.01.02"]
[Round "6.12"]
[White "Aoshima, Mirai"]
[Black "Bronstein, Or"]
[Result "1-0"]
[ECO "E11"]
[WhiteElo "2367"]
[BlackElo "2428"]
[Annotator "RC"]
[PlyCount "77"]
[EventDate "2023.12.27"]
[EventType "swiss"]
[EventCountry "SWE"]
[SourceTitle "playchess.com"]
[Source "ChessBase"]
[SourceQuality "1"]
[TimeControl "40/5400+30:1800+30"]

1. d4 {[%emt 0:00:03]} Nf6 {[%emt 0:08:06]} 2. c4 {[%emt 0:00:10]} e6 {[%emt 0:00:30]} 3. Nf3 {[%emt 0:00:09]} Bb4+ {[%emt 0:00:31]} 4. Nbd2 {[%emt 0:00:32]} O-O {[%emt 0:00:20]} 5. a3 {[%emt 0:00:40]} Be7 {[%emt 0:00:02]} 6. e4 {[%emt 0:01:23]} d6 {[%emt 0:01:11]} 7. Bd3 {[%emt 0:06:34]} e5 {[%emt 0:02:42]} 8. d5 {[%emt 0:02:26]} a5 {[%emt 0:04:28]} 9. O-O {[%emt 0:02:40]} Nbd7 {[%emt 0:05:42]} 10. b3 {[%emt 0:09:26]} Nh5 {[%emt 0:03:56]} 11. Re1 {[%emt 0:11:11]} Nc5 {[%emt 0:15:34]} 12. Bc2 {[%emt 0:00:30]} Nf4 {[%emt 0:09:54]} 13. Nf1 {[%emt 0:00:54]} f5 {[%emt 0:06:02]} 14. Ng3 {[%emt 0:08:23]} fxe4 {[%emt 0:00:35]} 15. Nxe4 {[%emt 0:00:13]} b6 {[%emt 0:07:31]} 16. Bxf4 {[%emt 0:05:03]} Rxf4 {[%emt 0:00:03]} 17. b4 {[%emt 0:00:35]} Nd7 {[%emt 0:08:05]} 18. Nfd2 {[%emt 0:08:18]} Nf8 {[%emt 0:02:54]} 19. g3 {[%emt 0:02:12]} Rf7 {[%emt 0:00:01]} 20. c5 {[%emt 0:01:37]} Ba6 {[%emt 0:03:15]} 21. Ba4 {[%emt 0:06:28]} b5 {[%emt 0:04:59]} 22. Bc2 {[%emt 0:02:06]} a4 {[%emt 0:01:14]} 23. Nf1 {[%emt 0:00:35]} Nd7 {[%emt 0:05:10]} 24. c6 {[%emt 0:10:09]} Nb6 {[%emt 0:00:01]} 25. Ne3 {[%emt 0:00:23]} Bg5 {[%emt 0:03:40]} 26. h4 {[%emt 0:02:57]} Bxe3 {[%emt 0:01:05]} 27. fxe3 {[%emt 0:00:10]} h6 {[%emt 0:00:56]} 28. Qd3 {[%emt 0:00:35]} Qe7 {[%emt 0:02:02]} 29. Nxd6 {[%emt 0:04:53]} Qxd6 {[%emt 0:01:34]} 30. Qh7+ {[%emt 0:00:07]} Kf8 {[%emt 0:00:01]} 31. Rf1 {[%emt 0:00:57]} Nxd5 {[%emt 0:01:49]} 32. Bg6 {[%emt 0:05:56]} Nf6 {[%emt 0:01:02]} 33. Qh8+ {[%emt 0:00:07]} Ke7 {[%emt 0:00:01]} 34. Qxa8 {[%emt 0:00:06]} Rf8 {[%emt 0:01:45]} 35. Qxa6 {[%emt 0:00:27]} Ng4 {[%emt 0:00:45]} 36. Rxf8 {[%emt 0:01:11]} Qxg6 {[%emt 0:00:31]} 37. Qc8 {[%emt 0:00:32]} Nf6 {[%emt 0:00:18]} 38. Qd8+ {[%emt 0:00:20]} Ke6 {[%emt 0:00:01]} 39. Rxf6+ {[%emt 0:00:12]} 1-0

[Event "51st Rilton Cup 2023-24"]
[Site "Stockholm"]
[Date "2024.01.02"]
[Round "6.13"]
[White "Subelj, Jan"]
[Black "Dotzer, Lukas"]
[Result "1-0"]
[ECO "A13"]
[WhiteElo "2512"]
[BlackElo "2338"]
[Annotator "TA"]
[PlyCount "113"]
[EventDate "2023.12.27"]
[EventType "swiss"]
[EventCountry "SWE"]
[SourceTitle "playchess.com"]
[Source "ChessBase"]
[SourceQuality "1"]
[TimeControl "40/5400+30:1800+30"]

{[%evp 9,113,14,19,14,19,23,16,6,8,11,19,24,53,36,71,65,92,79,85,73,85,73,75,48,45,46,38,38,47,47,84,81,78,78,122,112,113,95,116,83,85,68,141,98,130,120,127,98,93,94,94,91,93,97,89,88,88,92,97,80,105,35,256,206,262,241,474,474,515,489,569,595,604,604,603,564,711,673,910,535,500,527,514,473,671,637,732,711,768,732,885,797,1872,1787,1750,1780,1787,1823,4910,2858,29987,29983,29988,29989,29992,1718]} 1. Nf3 {[%emt 0:00:57]} Nf6 {[%emt 0:00:04]} 2. c4 {[%emt 0:00:16]} e6 {[%emt 0:00:09]} 3. g3 {[%emt 0:00:13]} d5 {[%emt 0:00:05]} 4. Bg2 {[%emt 0:00:13]} dxc4 {[%emt 0:00:40]} 5. Qa4+ {[%emt 0:06:43]} Bd7 {[%emt 0:01:41]} 6. Qxc4 {[%emt 0:00:08]} c5 {[%emt 0:00:24]} 7. O-O {[%emt 0:01:34]} Bc6 {[%emt 0:01:44]} 8. Nc3 {[%emt 0:00:18] The position is equal.} Nbd7 {[%emt 0:01:13][%cal Ob7b5]} 9. e4 {[%emt 0:00:55]} Be7 {[%emt 0:01:53]} 10. Qe2 {[%emt 0:00:51]} O-O {[%emt 0:09:28][%cal Ob7b5]} 11. d4 {[%emt 0:02:04]} cxd4 {[%emt 0:14:40]} 12. Nxd4 {[%emt 0:02:07]} Ne5 {[%emt 0:01:08]} 13. Rd1 {[%emt 0:05:14]} Qb6 {[%emt 0:06:02]} 14. Nxc6 {[%emt 0:01:01]} bxc6 {[%emt 0:05:21]} 15. Be3 {[%emt 0:04:08]} Qa5 {[%emt 0:02:31]} 16. h3 {[%emt 0:01:53]} ({Reject} 16. f4 Neg4 17. Bd4 (17. e5 $2 Nxe3 18. exf6 Bc5 $19) 17... Rad8 $11) 16... Bc5 {[%emt 0:05:46]} 17. Bxc5 {[%emt 0:01:50]} Qxc5 {[%emt 0:00:07]} 18. Rac1 {[%emt 0:00:05][%cal Oc3d5]} Qa5 {[%emt 0:16:55] Wards off Nd5} 19. b3 {[%emt 0:04:56]} Ned7 {[%emt 0:06:43]} 20. Na4 {[%emt 0:04:25]} Rac8 {[%emt 0:03:10]} 21. Rd6 {[%emt 0:00:33]} Qb5 {[%emt 0:06:47]} 22. Qd2 {[%emt 0:02:03]} Rc7 {[%emt 0:02:08]} 23. Qe3 {[%emt 0:05:09]} Qe5 {[%emt 0:06:06]} 24. Rd2 {[%emt 0:01:10]} Qa5 {[%emt 0:02:05]} 25. Rcd1 {[%emt 0:01:07]} e5 {[%emt 0:01:24]} (25... h6 $14) 26. Rd6 {[%emt 0:02:02]} c5 {[%emt 0:01:48]} 27. Qc3 {[%emt 0:06:17]} Qb4 {[%emt 0:01:45]} 28. Rc1 {[%emt 0:01:00] [#] aiming for Qxb4.} Rfc8 {[%emt 0:00:32]} 29. Nb2 {[%emt 0:00:47]} Qxc3 {[%emt 0:01:52]} 30. Rxc3 {[%emt 0:00:04]} Nb6 {[%emt 0:00:34]} 31. a4 {[%emt 0:04:49][%cal Ba2a4,Ba4a5][%mdl 32]} Kf8 {[%emt 0:00:32]} 32. a5 {[%emt 0:00:19]} Nbd7 {[%emt 0:00:04]} 33. Nc4 {[%emt 0:00:50]} Ke7 {[%emt 0:01:04]} 34. Rd1 {[%emt 0:00:34] White is much more active.} Rb8 {[%emt 0:00:29]} 35. f4 {[%emt 0:00:31]} ({White should play} 35. h4 $16) 35... Rc6 $2 {[%emt 0:00:33] This move loses the game for Black.} (35... exf4 $14 36. gxf4 Nh5) 36. Rcd3 {[%emt 0:00:51]} (36. Nxe5 Nxe5 37. fxe5 Nd7 $11) 36... Re6 {[%emt 0:00:29]} 37. g4 {[%emt 0:00:20]} Nf8 $2 {[%emt 0:00:28]} (37... Rb7 {was called for.} 38. Nd6 (38. g5 Nh5 $18) 38... Rxd6 39. Rxd6 h6) 38. f5 $18 {[%emt 0:01:08]} ({Less strong is} 38. Nxe5 g5 $18) ({Not} 38. fxe5 N6d7 $16) 38... Ra6 {[%emt 0:00:22]} 39. Nxe5 {[%emt 0:00:06] Black is weak on the light squares} h6 {[%emt 0:00:30]} 40. Nc4 {[%emt 0:00:49]} N6d7 {[%emt 0:00:37]} 41. e5 {[%emt 0:30:16][%cal Be4e5,Be5e6][%mdl 32]} Rb4 {[%emt 0:02:30]} 42. Re3 {[%emt 0:00:00]} Rb8 {[%emt 0:05:46]} 43. Bd5 {[%emt 0:00:00][%cal Bg2d5,Bd5c4,Bc4b5][%mdl 32]} f6 {[%emt 0:02:52]} 44. e6 {[%emt 0:00:00]} Ne5 {[%emt 0:00:21]} 45. Nxe5 {[%emt 0:00:00]} fxe5 {[%emt 0:00:09]} 46. Bc4 {[%emt 0:00:00]} Rxa5 {[%emt 0:00:19]} (46... Rd6 $142) 47. Rxe5 {[%emt 0:00:00]} Rc8 {[%emt 0:01:06]} 48. Kg2 {[%emt 0:00:00]} Rc7 {[%emt 0:00:53]} 49. Kg3 {[%emt 0:00:00]} Nh7 {[%emt 0:01:15]} 50. h4 {[%emt 0:00:00]} Ra2 {[%emt 0:02:17]} 51. Bb5 {[%emt 0:00:00] Threatening mate with Rd7+.} Kf6 {[%emt 0:01:37]} 52. Red5 {[%emt 0:00:00]} Rb2 {[%emt 0:01:07]} 53. Bc4 {[%emt 0:00:00] Intending Rd7 and mate.} Nf8 {[%emt 0:01:09] [#] Prevents Rd7} 54. Rd7 $1 {[%emt 0:00:00][%mdl 512]} Rc8 {[%emt 0:01:09] Against e7} (54... Nxd7 55. exd7) 55. Rf7+ {[%emt 0:00:00] White mates.} Ke5 {[%emt 0:00:05]} 56. e7 {[%emt 0:00:00]} Nh7 {[%emt 0:00:13]} 57. Re1+ {[%emt 0:00:00] Weighted Error Value: White=0.19 (very precise) /Black=0.43} (57. Rd8 $142 Rg2+ 58. Kxg2 Kf4 59. e8=Q Rxd8 60. Qxd8 Kxg4 61. Be2+ Kf4 62. Qd6+ Ke4 63. Bf3+ Ke3 64. Re7#) 1-0

[Event "51st Rilton Cup 2023-24"]
[Site "Stockholm"]
[Date "2024.01.02"]
[Round "6.14"]
[White "Hillarp Persson, Tiger"]
[Black "Dragicevic, Drazen"]
[Result "1-0"]
[ECO "A34"]
[WhiteElo "2493"]
[BlackElo "2322"]
[Annotator "TA"]
[PlyCount "109"]
[EventDate "2023.12.27"]
[EventType "swiss"]
[EventCountry "SWE"]
[SourceTitle "playchess.com"]
[Source "ChessBase"]
[SourceQuality "1"]
[TimeControl "40/5400+30:1800+30"]

{[%evp 14,109,26,0,0,0,0,-12,-6,-9,41,36,47,41,66,57,62,65,67,40,73,27,25,19,19,18,26,23,21,18,28,36,40,46,47,37,43,45,184,181,181,169,167,171,145,160,229,102,108,106,106,103,133,103,136,120,132,137,192,170,167,173,317,310,308,308,352,359,368,370,369,369,621,613,633,633,625,625,578,591,565,564,525,453,534,477,841,830,754,737,608,565,1439,1222,1789,1781,1364,1205]} 1. Nf3 {[%emt 0:00:03]} Nf6 {[%emt 0:10:19][%cal Bg8f6,Bf6d5,Bd5b4][%mdl 32]} 2. g3 {[%emt 0:00:41]} g6 {[%emt 0:00:18]} 3. Bg2 {[%emt 0:00:07]} Bg7 {[%emt 0:00:07]} 4. c4 {[%emt 0:00:25]} d5 {[%emt 0:02:28]} 5. O-O {[%emt 0:00:20]} O-O {[%emt 0:00:43]} 6. cxd5 {[%emt 0:02:53]} Nxd5 {[%emt 0:01:28]} 7. Nc3 {[%emt 0:00:19]} c5 {[%emt 0:03:46]} 8. Qa4 {[%emt 0:03:24]} Nb4 {[%emt 0:21:30] A34: Symmetrical English: 2 Nc3, lines with ...d5.} 9. a3 {[%emt 0:07:18]} Bd7 {[%emt 0:02:40]} 10. Qd1 {[%emt 0:02:59]} (10. Qb3 $5 {[%cal Ra3b4]} Be6 11. Qa4 $11) 10... N4c6 {[%emt 0:02:52] The position is equal.} 11. d3 {[%emt 0:02:10] [#]} Qc8 $146 {[%emt 0:08:08]} (11... Na6 $11) ({Predecessor:} 11... Nd4 12. Nxd4 cxd4 13. Ne4 Bc6 14. Bd2 a5 {½-½ Teplyi,I (2395)-Svane,R (2477) Copenhagen GM 2014 (7)}) 12. Be3 $14 {[%emt 0:05:47]} Na6 {[%emt 0:00:21]} 13. Rc1 $1 {[%emt 0:07:48]} Bh3 {[%emt 0:06:46]} 14. Qa4 {[%emt 0:03:44]} Bxg2 {[%emt 0:03:50]} 15. Kxg2 {[%emt 0:00:55]} Rd8 {[%emt 0:03:18]} 16. h4 {[%emt 0:06:26][%cal Oh4h5]} Qd7 {[%emt 0:03:29]} 17. Ne4 {[%emt 0:15:07]} ({White should play} 17. h5 $16) 17... Ne5 $11 {[%emt 0:09:20]} 18. Qxd7 {[%emt 0:01:15]} (18. Nxc5 $2 Nxc5 19. Qxd7 Ncxd7 $19) 18... Nxd7 {[%emt 0:00:16]} 19. Rc2 {[%emt 0:00:59]} (19. Bxc5 f5 20. Bxe7 fxe4 21. dxe4 Re8 $17) 19... b6 {[%emt 0:02:44]} 20. Rfc1 {[%emt 0:02:02]} Nf6 {[%emt 0:05:00]} 21. Nxf6+ {[%emt 0:00:36]} Bxf6 {[%emt 0:00:02]} 22. g4 {[%emt 0:00:24][%cal Bg3g4,Bg4g5][%mdl 32]} Kf8 {[%emt 0:03:47]} 23. h5 {[%emt 0:04:23]} Rd5 {[%emt 0:01:11]} 24. Rh1 {[%emt 0:00:48][%cal Bc1h1,Bh1h5,Bh5h4][%mdl 32]} gxh5 {[%emt 0:03:14]} 25. g5 {[%emt 0:00:32]} (25. gxh5 Ke8 $11) 25... Bd4 {[%emt 0:01:14]} (25... Bg7 $14) 26. Bxd4 $18 {[%emt 0:01:08]} (26. Rxh5 $6 Bxe3 27. fxe3 Kg7 $16) 26... cxd4 {[%emt 0:00:02]} 27. Rxh5 {[%emt 0:00:35]} Kg7 {[%emt 0:00:11]} 28. b4 {[%emt 0:02:13] Repels Nc5} Rad8 {[%emt 0:00:09]} 29. Rh4 {[%emt 0:03:19]} R8d7 {[%emt 0:04:36]} (29... e6 $16 30. Rc4 Nb8 31. Rhxd4 (31. Nxd4 b5 $17) 31... Rxd4 32. Nxd4 (32. Rxd4 Rxd4 33. Nxd4 e5 $16) 32... Rd5) 30. Rc4 {[%emt 0:01:54]} (30. Rc1 $18 {and White stays clearly on top.}) 30... Nc7 $16 {[%emt 0:01:06]} 31. Rhxd4 {[%emt 0:01:52] White is more active.} ({Much less strong is} 31. Nxd4 Rxg5+ 32. Kf1 h5 $14) 31... Ne6 {[%emt 0:00:01][%csl LRd4,LRg5]} 32. Rg4 {[%emt 0:02:43]} b5 {[%emt 0:00:28]} 33. Rc1 {[%emt 0:01:29]} R7d6 {[%emt 0:00:25]} 34. Kg3 {[%emt 0:03:07]} Ra6 {[%emt 0:00:17]} 35. Rc3 {[%emt 0:00:06]} Rd7 {[%emt 0:01:24]} (35... Ra4 $16 36. d4 a5) 36. d4 {[%emt 0:01:03][%cal Bd3d4,Bd4d5][%mdl 32]} Rc7 {[%emt 0:00:11]} 37. Rd3 {[%emt 0:00:11]} Rc2 {[%emt 0:00:20]} (37... Nf8 {is a better defense.} 38. d5 Rd6) 38. d5 $18 {[%emt 0:00:34]} Nd8 {[%emt 0:00:52]} 39. Re4 {[%emt 0:01:37]} e6 {[%emt 0:00:34]} 40. Nd4 {[%emt 0:01:43]} ({Don't do} 40. d6 Rc1 41. Ne5 Rg1+ 42. Kf4 Rf1 $18) 40... Rc4 {[%emt 0:00:05]} 41. dxe6 {[%emt 0:30:56]} Nxe6 {[%emt 0:09:45]} 42. Nxe6+ {[%emt 0:00:00]} Rxe6 $2 {[%emt 0:03:57]} (42... fxe6 43. Re5 h6 44. gxh6+ Kxh6 45. Rxb5 Rc7) 43. Rxe6 {[%emt 0:00:00] White is clearly winning.} fxe6 {[%emt 0:00:05][%mdl 4096] Endgame KR-KR} 44. Rd7+ {[%emt 0:00:00]} Kg6 {[%emt 0:00:08]} 45. Rxa7 {[%emt 0:00:00]} Re4 {[%emt 0:07:08]} 46. Kf3 {[%emt 0:00:00]} Re5 {[%emt 0:01:03]} 47. Re7 {[%emt 0:00:00]} Rf5+ {[%emt 0:04:11]} 48. Ke3 {[%emt 0:00:00] [#] Threatens to win with f4.} Re5+ {[%emt 0:00:12]} 49. Kd3 {[%emt 0:00:00] f4 is the strong threat.} Kxg5 {[%emt 0:03:25]} (49... Rf5 $142 50. Ke3 Rxg5 51. Rxe6+ Kg7 52. Re7+ Kg6 53. Re6+ Kg7) 50. Rxh7 {[%emt 0:00:00] aiming for e4.} Rd5+ {[%emt 0:00:37]} 51. Kc3 {[%emt 0:00:00]} Rf5 {[%emt 0:00:21]} 52. f3 {[%emt 0:00:00]} Re5 {[%emt 0:00:56]} 53. e4 {[%emt 0:00:00] [#] Hoping for Rc7.} Kf4 {[%emt 0:00:21]} 54. Kd4 {[%emt 0:00:00]} Rg5 {[%emt 0:00:52]} 55. Rf7+ {[%emt 0:00:00] Weighted Error Value: White=0.10 (very precise) /Black=0.31} 1-0